fUST/lending_fUST_20240823
["ID","MTS","AMOUNT","RATE_DAILY","PERIOD"]
[335666424,1724407462235,500.0,0.00027,120]
[335666425,1724407463207,500.0,0.00014277,7]
[335666430,1724407542487,500.0,0.00027,120]
[335666433,1724407603278,1000.0,0.00027,120]
[335666435,1724407639133,-199.56453298,0.00012989,2]
[335666436,1724407639155,-155.1301764,0.00012999,2]
[335666437,1724407639178,-500.99238516,0.00013333,2]
[335666438,1724407639199,-194.89692396,0.00013699,2]
[335666439,1724407639222,-260.4535797,0.00013974,2]
[335666440,1724407639243,-964.75125734,0.00014245,2]
[335666441,1724407641984,624.71,0.00027,120]
[335666442,1724407648124,500.0,0.00027,120]
[335666443,1724407650122,-649.01057389,0.00014245,2]
[335666444,1724407650145,-267.71013995,0.00014245,2]
[335666445,1724407650170,-81.16161776,0.00014247,2]
[335666448,1724407745122,-435.68894752,0.00013971,2]
[335666449,1724407745145,-95.08950224,0.00014247,2]
[335666450,1724407745168,-251.421807,0.00014247,2]
[335666451,1724407745190,-182.05291897,0.00014247,2]
[335666452,1724407745213,-984.5685379,0.00014519,2]
[335666453,1724407745234,-194.89692396,0.00014519,2]
[335666454,1724407745259,-2637.2133976,0.00014868,2]
[335666455,1724407745282,-175.26990434,0.00014977,2]
[335666456,1724407747101,-156.66265186,0.00014519,2]
[335666457,1724407750098,-2824.73009566,0.00014977,2]
[335666463,1724407760460,203.51041894,0.00014519,2]
[335666464,1724407760482,105.66653253,0.00014519,2]
[335666537,1724407835414,-159.665921,0.00015635,2]
[335666538,1724407835424,-159.665921,0.00016043,2]
[335666539,1724407835434,-500.0,0.00016438,2]
[335666540,1724407835444,-159.665921,0.0001645,2]
[335666541,1724407835455,-1235.58252845,0.00016958,2]
[335666542,1724407835467,-180.41747155,0.00016958,2]
[335666543,1724407835477,-6301.27358764,0.00016958,2]
[335666588,1724407837958,-6018.64913357,0.00016958,2]
[335666654,1724407840044,-3138.07727879,0.00016958,2]
[335666657,1724407840064,-155.0,0.0001696,2]
[335666660,1724407840081,-1111.52616931,0.00016985,2]
[335666662,1724407840099,-1111.52616931,0.00016999,2]
[335666665,1724407840115,-300.0,0.00016999,2]
[335666668,1724407840133,-151.0,0.00017,2]
[335666671,1724407840152,-3961.68,0.00017,2]
[335666674,1724407840167,-150.0,0.00017019,2]
[335666676,1724407840180,-166.873728,0.000171,2]
[335666678,1724407840193,-150.112233,0.000172,2]
[335666681,1724407840206,-213.126,0.00017211,2]
[335666684,1724407840221,-150.104,0.00017211,2]
[335666686,1724407840236,-150.0,0.00017211,2]
[335666689,1724407840252,-150.0,0.00017211,2]
[335666692,1724407840270,-150.0,0.00017211,2]
[335666694,1724407840281,-522.0,0.00017211,2]
[335666696,1724407840292,-154.5183999,0.0001726,2]
[335666699,1724407840307,-153.0,0.0001726,2]
[335666702,1724407840323,-153.0,0.0001726,2]
[335666704,1724407840335,-153.0,0.0001726,2]
[335666707,1724407840351,-153.0,0.0001726,2]
[335666709,1724407840364,-153.0,0.0001726,2]
[335666711,1724407840376,-153.0,0.0001726,2]
[335666714,1724407840392,-153.0,0.0001726,2]
[335666718,1724407840421,-288.5822334,0.0001726,2]
[335666721,1724407840436,-264.76319268,0.00017267,2]
[335666724,1724407840450,-195.13349832,0.00017269,2]
[335666726,1724407840464,-150.112233,0.000173,2]
[335666729,1724407840479,-634.79581816,0.00017305,2]
[335666731,1724407840493,-150.112233,0.000174,2]
[335666734,1724407840507,-150.112233,0.000175,2]
[335666736,1724407840521,-150.112233,0.000176,2]
[335666739,1724407840539,-151.0,0.00017607,2]
[335666742,1724407840556,-169.099331,0.00017638,2]
[335666745,1724407840570,-288.562995,0.00017638,2]
[335666747,1724407840586,-230.850395,0.00017638,2]
[335666750,1724407840600,-984.40400373,0.00017641,2]
[335666753,1724407840616,-1000.0,0.00017642,2]
[335666755,1724407840632,-1131.26928965,0.0001768,2]
[335666758,1724407840646,-150.112233,0.000177,2]
[335666760,1724407840661,-1000.0,0.00017711,2]
[335666763,1724407840676,-463.92297381,0.0001776,2]
[335666765,1724407840690,-151.0,0.00017762,2]
[335666768,1724407840703,-1000.0,0.00017787,2]
[335666770,1724407840716,-1000.0,0.00017798,2]
[335666773,1724407840729,-150.112233,0.000178,2]
[335666775,1724407840742,-3000.0,0.000178,2]
[335666778,1724407840755,-3000.0,0.0001781,2]
[335666780,1724407840769,-338.890775,0.0001782,2]
[335666782,1724407840783,-338.890775,0.0001782,2]
[335666785,1724407840797,-151.0,0.0001782,2]
[335666787,1724407840810,-3000.0,0.0001782,2]
[335666790,1724407840823,-953.84767115,0.00017825,2]
[335666792,1724407840836,-3000.0,0.0001783,2]
[335666794,1724407840849,-636.25659151,0.00017837,2]
[335667040,1724407843056,-163.95692627,0.00017837,2]
[335667292,1724407845952,-529.56158057,0.00017807,2]
[335669865,1724408411065,500.0,0.00027,120]
[335669869,1724408481759,500.0,0.00027,120]
[335669871,1724408592430,500.0,0.00027,120]
[335669882,1724408730147,-265.94980153,0.00013597,2]
[335669883,1724408730168,-4.35888173,0.00013699,2]
[335669885,1724408759098,-190.77461659,0.00013699,2]
[335669886,1724408759121,-300.0,0.00013999,2]
[335669887,1724408759142,-300.0,0.00013999,2]
[335669889,1724408759369,-171.21503019,0.00014,2]
[335669893,1724408831198,-221.53464968,0.00014,2]
[335669895,1724408835145,-1179.04135495,0.00014,2]
[335669896,1724408851142,-456.12651532,0.00014,2]
[335669909,1724408951104,-288.24848989,0.00013792,2]
[335669910,1724408951126,-601.94637562,0.00013792,2]
[335669911,1724408951147,-300.0,0.00013999,2]
[335669912,1724408951168,-4097.30945025,0.00014,2]
[335669913,1724408954097,-2839.03066826,0.00014,2]
[335669914,1724408954119,-594.94258773,0.00014,4]
[335669915,1724408957095,-4171.97492371,0.00014,4]
[335669916,1724408957117,-191.62834,0.00014247,2]
[335669917,1724408957139,-238.850716,0.00014247,2]
[335669918,1724408957159,-608.0964913,0.00014928,2]
[335669919,1724408957181,-250.0000027,0.00015165,2]
[335669920,1724408957203,-420.0,0.00015399,2]
[335669921,1724408959009,111.91800543,0.00014519,2]
[335669923,1724408960101,-42.96897816,0.00014519,2]
[335669927,1724408964860,209.11903009,0.00014519,2]
[335669928,1724408966105,-84.2515501,0.00014519,2]
[335669929,1724408966128,-2070.36604007,0.00014519,2]
[335669930,1724408967330,136.22060983,0.00014519,2]
[335669931,1724408972097,-628.60601777,0.00014519,2]
[335669932,1724408973114,-188.08712453,0.000156,2]
[335669933,1724408973136,-188.08712453,0.000156,2]
[335669934,1724408977058,287.37447503,0.00014519,2]
[335669966,1724409032040,-2912.5329933,0.0001564,2]
[335669968,1724409032050,-500.0,0.00016438,2]
[335669970,1724409032060,-254.52595624,0.00016936,2]
[335669972,1724409032071,-953.84767115,0.00016968,2]
[335669974,1724409032080,-953.84767115,0.00016974,2]
[335669976,1724409032090,-300.0,0.00016999,2]
[335669978,1724409032100,-9131.62650816,0.00017,2]
[335670014,1724409038079,-8278.30550435,0.00017,2]
[335670015,1724409038091,-1999.999999,0.00017,2]
[335670016,1724409038101,-984.40400373,0.00017124,2]
[335670017,1724409038111,-268.1,0.00017141,2]
[335670018,1724409038122,-277.76886237,0.00017174,2]
[335670019,1724409038132,-1316.83168963,0.00017196,2]
[335670020,1724409038143,-1416.0,0.00017244,2]
[335670021,1724409038154,-733.558312,0.00017244,2]
[335670022,1724409038167,-14724.441688,0.00017244,2]
[335670023,1724409038177,-150.0,0.00017244,2]
[335670024,1724409038188,-268.1,0.00017296,2]
[335670025,1724409038198,-645.0655159,0.00017368,2]
[335670026,1724409038208,-155.0,0.0001742,2]
[335670027,1724409038218,-268.1,0.00017451,2]
[335670028,1724409038227,-413.74889628,0.00017598,2]
[335670029,1724409038237,-1000.0,0.00017605,2]
[335670031,1724409038247,-268.1,0.00017606,2]
[335670034,1724409038257,-1703.88248,0.00017638,2]
[335670035,1724409038267,-173.137797,0.00017638,2]
[335670036,1724409038277,-169.099331,0.00017638,2]
[335670037,1724409038286,-1131.26928965,0.00017683,2]
[335670038,1724409038295,-463.92297381,0.00017696,2]
[335670039,1724409038306,-1049.29320329,0.000177,2]
[335670040,1724409038316,-1049.29320327,0.00017723,2]
[335670041,1724409038326,-1049.29320327,0.00017745,2]
[335670042,1724409038336,-1000.0,0.00017759,2]
[335670043,1724409038346,-3425.7653188,0.0001776,2]
[335670044,1724409038355,-268.1,0.00017762,2]
[335670045,1724409038365,-1049.29320327,0.00017768,2]
[335670046,1724409038374,-500.0,0.00017773,2]
[335670047,1724409038384,-486.36544117,0.00017774,2]
[335670048,1724409038394,-1493.5829547,0.00017775,9]
[335670049,1724409038406,-6467.76220052,0.00017775,9]
[335670050,1724409038428,-100862.2208878,0.00017775,2]
[335670051,1724409038462,-10993.5626122,0.00017775,2]
[335670052,1724409038472,-1648.3913098,0.0001778,2]
[335670053,1724409038481,-8222.41603942,0.00017786,2]
[335670054,1724409038494,-18836.38280611,0.00017786,2]
[335670055,1724409038642,-8960.98376808,0.00017786,2]
[335670058,1724409040529,-522.0,0.00017244,2]
[335670059,1724409040540,-33569.40964093,0.00017786,2]
[335670314,1724409057597,188.3,0.00010959,2]
[335670315,1724409068320,156.91,0.00010959,2]
[335670317,1724409078946,293.69067591,0.00010959,2]
[335670318,1724409078968,180.46005016,0.00010959,2]
[335670319,1724409078997,310.43927393,0.00010959,2]
[335670326,1724409390506,262.83,0.00027,120]
[335670329,1724409431372,500.01,0.00027,120]
[335670337,1724409591030,500.0,0.00027,120]
[335670354,1724409942175,-237.57920033,0.00012551,2]
[335670355,1724409942199,-103.97084387,0.00014245,2]
[335670356,1724409949090,-299.03272686,0.00014245,3]
[335670357,1724409949115,-211.163407,0.00014247,2]
[335670358,1724409949137,-226.90818,0.00014247,2]
[335670359,1724409949159,-58.02396991,0.00015102,2]
[335670362,1724410025105,-202.68912669,0.00014245,2]
[335670363,1724410025128,-140.20930309,0.00015102,2]
[335670364,1724410025151,-198.233273,0.00015495,2]
[335670365,1724410025173,-43.72639533,0.00015797,2]
[335670366,1724410027431,-226.13329022,0.00015797,2]
[335670368,1724410049131,-30.14031445,0.00015797,2]
[335670369,1724410049153,-550.46549871,0.00015798,2]
[335670370,1724410074122,3000.0,0.00016,30]
[335670371,1724410093139,-300.0,0.00015797,2]
[335670372,1724410093165,-2150.0,0.00015798,2]
[335670386,1724410151116,-1139.85901049,0.00014519,2]
[335670387,1724410151139,-739.88604958,0.00014519,2]
[335670388,1724410151163,-300.0,0.00015269,2]
[335670389,1724410151185,-10172.5704007,0.0001527,2]
[335670390,1724410151211,-17994.80011649,0.0001527,2]
[335670391,1724410160112,-366.10950371,0.0001527,2]
[335670392,1724410160135,-198.233273,0.00015469,2]
[335670401,1724410188723,154.74467129,0.0001527,2]
[335670403,1724410192096,315.0,0.0001527,2]
[335670409,1724410203698,154.74467129,0.0001527,2]
[335670425,1724410232158,-1930.07089713,0.00016338,2]
[335670427,1724410232169,-500.0,0.00016438,2]
[335670429,1724410232179,-277.76886237,0.000165,2]
[335670430,1724410232189,-67255.4903671,0.0001659,2]
[335670433,1724410232208,-8867.275,0.0001659,2]
[335670435,1724410232220,-1756.24545313,0.0001659,2]
[335670460,1724410238445,-22120.98917977,0.0001659,2]
[335670461,1724410238456,-300.0,0.000166,2]
[335670462,1724410238466,-500.0,0.00016673,2]
[335670463,1724410238476,-500.0,0.00016688,2]
[335670464,1724410238486,-500.0,0.00016688,2]
[335670465,1724410238496,-500.0,0.00016688,2]
[335670466,1724410238505,-389.02677923,0.00016688,2]
[335670467,1724410238516,-49101.6470425,0.00016689,2]
[335670468,1724410238527,-1019.15742538,0.00016925,2]
[335670469,1724410238539,-953.84767115,0.00016936,2]
[335670470,1724410238551,-1000.0,0.00017,17]
[335670471,1724410238561,-156.4,0.00017123,2]
[335670472,1724410238571,-1019.15742535,0.00017136,2]
[335670473,1724410238581,-415.2904478,0.00017205,2]
[335670474,1724410238591,-634.79581816,0.00017261,2]
[335670475,1724410238601,-156.4,0.00017277,2]
[335670476,1724410238611,-49101.6470425,0.00017292,2]
[335670477,1724410238621,-150.0,0.00017303,2]
[335670478,1724410238630,-522.0,0.00017303,2]
[335670479,1724410238640,-1416.0,0.00017303,2]
[335670480,1724410238650,-150.0,0.00017303,2]
[335670481,1724410238659,-15458.0,0.00017303,2]
[335670482,1724410238669,-150.0,0.00017303,2]
[335670483,1724410238679,-150.0,0.00017303,2]
[335670484,1724410238690,-1019.15742535,0.00017347,2]
[335670485,1724410238699,-156.4,0.00017431,2]
[335670486,1724410238709,-1019.15742535,0.00017558,2]
[335670487,1724410238719,-156.4,0.00017585,2]
[335670488,1724410238729,-150.112234,0.000176,2]
[335670489,1724410238739,-1000.0,0.00017606,2]
[335670490,1724410238749,-151.0,0.00017696,2]
[335670491,1724410238758,-151.0,0.00017696,2]
[335670492,1724410238768,-231.231403,0.00017696,2]
[335670493,1724410238780,-231.231403,0.00017696,2]
[335670494,1724410238789,-151.0,0.00017696,2]
[335670495,1724410238801,-359.925902,0.00017696,2]
[335670496,1724410238810,-359.925902,0.00017696,2]
[335670497,1724410238821,-766.650568,0.00017696,2]
[335670498,1724410238832,-766.650568,0.00017696,2]
[335670499,1724410238847,-204.810582,0.00017696,2]
[335670500,1724410238862,-3342.071583,0.00017696,2]
[335670501,1724410238872,-204.810582,0.00017696,2]
[335670502,1724410238882,-3342.071583,0.00017696,2]
[335670503,1724410238892,-2796.496519,0.00017696,2]
[335670504,1724410238902,-151.0,0.00017696,2]
[335670505,1724410238912,-2796.496519,0.00017696,2]
[335670506,1724410238922,-151.0,0.00017696,2]
[335670507,1724410238934,-151.0,0.00017696,2]
[335670508,1724410238944,-338.890775,0.00017696,2]
[335670509,1724410238955,-338.890775,0.00017696,2]
[335670510,1724410238965,-150.112233,0.000177,2]
[335670511,1724410238976,-1593.28922229,0.0001772,2]
[335670512,1724410238986,-49101.6470425,0.00017721,2]
[335670513,1724410238996,-1000.0,0.00017731,2]
[335670514,1724410239006,-1000.0,0.00017733,2]
[335670515,1724410239016,-156.4,0.00017739,2]
[335670516,1724410239026,-155.0,0.0001774,2]
[335670517,1724410239036,-182.237756,0.00017759,2]
[335670518,1724410239046,-182.237756,0.00017759,2]
[335670519,1724410239058,-2921.529731,0.00017759,2]
[335670520,1724410239067,-2921.529731,0.00017759,2]
[335670521,1724410239077,-7518.66738661,0.00017759,2]
[335670522,1724410239090,-6815.21813281,0.00017759,2]
[335670532,1724410240421,-48.78427104,0.00017759,2]
[335670533,1724410240448,-34091.40964093,0.00017759,2]
[335670534,1724410240460,-705.40428219,0.00017759,2]
[335670568,1724410243442,-3980.67257761,0.00017759,9]
[335670570,1724410243452,-1359.52742237,0.00017759,2]
[335670622,1724410244343,184.8378007,0.00014519,2]
[335670623,1724410244365,245.0,0.00014519,2]
[335670625,1724410246230,-357.50805235,0.00014519,2]
[335670626,1724410246255,-1.8463186,0.00014519,2]
[335670627,1724410285348,151.63463938,0.00014245,2]
[335670628,1724410352629,500.0,0.00027,120]
[335670637,1724410581472,500.0,0.00027,120]
[335670655,1724411135152,-1109.59854017,0.00013477,2]
[335670656,1724411140122,-175.47982,0.00013477,2]
[335670657,1724411235118,-510.5149478,0.00013477,2]
[335670658,1724411235147,-228.44159224,0.00013477,2]
[335670659,1724411235168,-202.68367775,0.00013477,2]
[335670660,1724411248098,-157.71433873,0.00013477,2]
[335670661,1724411248189,-195.76058132,0.00013477,2]
[335670662,1724411271640,500.0,0.00027,120]
[335670665,1724411345145,-341.64933442,0.00014245,2]
[335670666,1724411345172,-909.17318897,0.00014245,2]
[335670667,1724411345204,-341.64933442,0.00014245,2]
[335670668,1724411345227,-300.0,0.00014246,2]
[335670669,1724411345249,-262.552531,0.00014247,2]
[335670670,1724411345274,-181.526544,0.00014247,2]
[335670671,1724411345295,-156.66265186,0.00014519,2]
[335670672,1724411357020,980.0,0.00014519,2]
[335670673,1724411357044,4.5685379,0.00014519,2]
[335670674,1724411359644,194.89692396,0.00014519,2]
[335670675,1724411360111,-301.75463553,0.0001567,2]
[335670676,1724411367843,15.25699451,0.00014,2]
[335670677,1724411367865,245.0,0.00014,2]
[335670678,1724411367887,266.50622446,0.00014,2]
[335670680,1724411372111,-14486.95018903,0.00014,2]
[335670681,1724411372131,-374.93481618,0.00014519,2]
[335670733,1724411433264,-259.51050466,0.00014,2]
[335670734,1724411433275,-34.05629539,0.00014,2]
[335670735,1724411433287,-271.92316144,0.00014,2]
[335670736,1724411433297,-364.61309673,0.00014,2]
[335670737,1724411433336,-145.90185107,0.00014,2]
[335670738,1724411433345,-503.41471562,0.00014,2]
[335670814,1724411439134,-1169.15758741,0.00014,2]
[335670815,1724411439144,-182.05291897,0.00014,2]
[335670816,1724411439154,-250.000002,0.00016244,2]
[335670817,1724411439163,-500.0,0.00016438,2]
[335670818,1724411439173,-277.76886237,0.00016968,2]
[335670819,1724411439183,-382.75453791,0.00016969,2]
[335670820,1724411439194,-1416.0,0.00017152,2]
[335670821,1724411439204,-953.84767115,0.00017158,2]
[335670822,1724411439214,-1321.26428452,0.00017199,2]
[335670823,1724411439224,-300.0,0.00017301,2]
[335670824,1724411439234,-213.126,0.00017303,2]
[335670825,1724411439249,-150.104,0.00017303,2]
[335670826,1724411439258,-150.0,0.00017303,2]
[335670827,1724411439269,-150.0,0.00017303,2]
[335670828,1724411439279,-150.0,0.00017303,2]
[335670829,1724411439288,-522.0,0.00017303,2]
[335670830,1724411439297,-1000.0,0.00017577,2]
[335670831,1724411439307,-1730.22841085,0.00017589,2]
[335670832,1724411439316,-2602.0,0.000176,2]
[335670833,1724411439326,-203.83148507,0.000176,2]
[335670834,1724411439335,-2500.0,0.000176,2]
[335670835,1724411439345,-328.77727016,0.000176,3]
[335670836,1724411439355,-203.83148507,0.00017617,2]
[335670837,1724411439364,-203.83148507,0.00017635,2]
[335670838,1724411439373,-168.734046,0.00017638,2]
[335670839,1724411439382,-168.996708,0.00017638,2]
[335670840,1724411439392,-1743.24383,0.00017638,2]
[335670841,1724411439401,-203.83148507,0.00017652,2]
[335670842,1724411439410,-1433.96030007,0.00017669,2]
[335670843,1724411439419,-203.83148507,0.00017669,2]
[335670844,1724411439428,-40000.0,0.0001768,2]
[335670845,1724411439437,-82328.2817384,0.0001768,2]
[335670846,1724411439446,-3258.5,0.000177,2]
[335670847,1724411439455,-41164.1408692,0.00017739,2]
[335670848,1724411439464,-82328.2817384,0.00017749,2]
[335670849,1724411439474,-255.849199,0.00017749,2]
[335670850,1724411439484,-255.849199,0.00017749,2]
[335670851,1724411439494,-255.849199,0.00017749,2]
[335670852,1724411439503,-255.849199,0.00017749,2]
[335670853,1724411439513,-73210.56121886,0.00017749,2]
[335670909,1724411440654,-209.89186436,0.00017679,2]
[335670911,1724411440667,-1072.07725865,0.00017749,2]
[335671463,1724411446553,-7152.63688296,0.00017749,2]
[335671491,1724411500650,10000.0,0.00025,60]
[335671492,1724411513147,1733.0,0.00025,60]
[335671493,1724411520910,500.0,0.00027,120]
[335671494,1724411568876,269.84030826,0.00014519,7]
[335671511,1724411815673,1000.0,0.00025,60]
[335671516,1724412335131,-195.13349832,0.00014245,2]
[335671517,1724412335155,-211.18868529,0.00014247,2]
[335671518,1724412348101,-228.01200171,0.00014247,2]
[335671519,1724412348126,-883.8395441,0.00016012,2]
[335671521,1724412433110,-260.79903162,0.00014519,2]
[335671522,1724412433135,-1753.3738536,0.00015929,2]
[335671523,1724412433159,-300.0,0.00016011,2]
[335671524,1724412433182,-300.0,0.00016011,2]
[335671525,1724412433206,-1672.57230303,0.00016012,2]
[335671526,1724412433234,-324.7090009,0.00016012,2]
[335671540,1724412545176,-601.94637562,0.00014245,2]
[335671541,1724412545199,-288.24848989,0.00014245,2]
[335671542,1724412546101,-300.0,0.00016011,2]
[335671543,1724412546123,-58.04553701,0.00016012,2]
[335671544,1724412546145,-49.67849882,0.00016012,2]
[335671555,1724412571191,227.45442458,0.00014519,2]
[335671556,1724412571214,980.0,0.00014519,2]
[335671557,1724412571238,203.51041894,0.00014519,2]
[335671558,1724412571260,157.78180986,0.00014519,2]
[335671559,1724412572096,-558.99136142,0.00014519,2]
[335671566,1724412593029,237.92460982,0.00014519,2]
[335671568,1724412597880,12.19133199,0.00014519,2]
[335671572,1724412613142,217.10395669,0.00010959,2]
[335671573,1724412613170,325.26604331,0.00010959,2]
[335671616,1724412632662,-967.68380774,0.00014519,2]
[335671618,1724412632672,-286.97049983,0.00014519,2]
[335671619,1724412632681,-1176.38569243,0.00014519,2]
[335671675,1724412638740,-496.1866106,0.00014519,2]
[335671677,1724412638750,-356.75448895,0.00014519,2]
[335671679,1724412638760,-4721.04600346,0.00014519,2]
[335671681,1724412638770,-155.00347253,0.00014519,2]
[335671683,1724412638779,-406.77446256,0.00014519,2]
[335671685,1724412638789,-175.2699043,0.00016007,2]
[335671686,1724412638799,-300.0,0.00016011,2]
[335671687,1724412638808,-105.06617247,0.00016012,2]
[335671688,1724412638818,-250.0,0.00016077,2]
[335671689,1724412638828,-271.945127,0.00016114,2]
[335671690,1724412638838,-500.0,0.00016438,2]
[335671691,1724412638848,-277.76886237,0.000165,2]
[335671692,1724412638857,-953.84767115,0.00016741,2]
[335671694,1724412638867,-1321.26428452,0.00017025,2]
[335671695,1724412638876,-473.48979091,0.00017219,2]
[335671697,1724412638886,-501.07036311,0.00017219,2]
[335671698,1724412638894,-1416.0,0.0001736,2]
[335671699,1724412638904,-150.0,0.0001736,2]
[335671700,1724412638913,-1900.19419348,0.00017549,2]
[335671701,1724412638922,-1900.7165056,0.00017549,2]
[335671702,1724412638944,-522.0,0.00016704,2]
[335671703,1724412638954,-99.2834944,0.00017549,2]
[335671704,1724412638964,-1111.52616931,0.00017599,2]
[335671705,1724412638973,-420.0,0.00017612,2]
[335671706,1724412638983,-164.435098,0.00017638,2]
[335671707,1724412638992,-168.865377,0.00017638,2]
[335671708,1724412639001,-348.648766,0.00017638,2]
[335671709,1724412639012,-41584.5250578,0.00017639,2]
[335671710,1724412639022,-203.83148507,0.00017649,2]
[335671711,1724412639032,-88888.0,0.00017649,2]
[335671712,1724412639041,-203.83148507,0.00017652,2]
[335671713,1724412639051,-203.83148507,0.00017654,2]
[335671714,1724412639061,-203.83148507,0.00017657,2]
[335671715,1724412639070,-1650.21151995,0.00017658,2]
[335671716,1724412639080,-203.83148507,0.00017659,2]
[335671717,1724412639089,-12271.20204401,0.0001768,2]
[335671718,1724412639099,-1000.0,0.00017687,2]
[335671719,1724412639108,-255.2975683,0.00017687,2]
[335671720,1724412639118,-150.112233,0.000177,2]
[335671721,1724412639127,-150.112233,0.000177,2]
[335671722,1724412639137,-150.112233,0.000177,2]
[335671723,1724412639147,-150.112233,0.000177,2]
[335671724,1724412639156,-166.873724,0.000177,2]
[335671725,1724412639166,-3000.0,0.000177,2]
[335671726,1724412639175,-150.112233,0.000177,2]
[335671727,1724412639194,-150.112233,0.000177,2]
[335671728,1724412639208,-636.25659151,0.00017705,2]
[335671729,1724412639218,-3000.0,0.0001771,2]
[335671730,1724412639228,-3000.0,0.0001772,2]
[335671731,1724412639237,-3000.0,0.0001773,2]
[335671732,1724412639246,-83169.0501155,0.00017739,2]
[335671733,1724412639256,-3000.0,0.0001774,2]
[335671734,1724412639266,-151.0,0.00017748,2]
[335671735,1724412639276,-151.0,0.00017748,2]
[335671736,1724412639287,-500.0,0.00017748,2]
[335671737,1724412639297,-500.0,0.00017748,2]
[335671738,1724412639306,-318.89311622,0.00017748,2]
[335671739,1724412639316,-500.0,0.00017748,2]
[335671740,1724412639326,-500.0,0.00017748,2]
[335671741,1724412639337,-500.0,0.00017748,2]
[335671742,1724412639346,-500.0,0.00017748,2]
[335671743,1724412639356,-500.0,0.00017748,2]
[335671744,1724412639365,-500.0,0.00017748,2]
[335671745,1724412639375,-500.0,0.00017748,2]
[335671746,1724412639385,-500.0,0.00017748,2]
[335671747,1724412639395,-248.60054689,0.00017748,2]
[335671748,1724412639405,-647.94403096,0.00017748,2]
[335671749,1724412639415,-500.0,0.00017748,2]
[335671750,1724412639425,-786.51314252,0.00017748,2]
[335671751,1724412639435,-786.51314252,0.00017748,2]
[335671752,1724412639445,-786.51314252,0.00017748,2]
[335671753,1724412639456,-786.51314252,0.00017748,2]
[335671754,1724412639465,-786.51314252,0.00017748,2]
[335671755,1724412639474,-786.51314252,0.00017748,2]
[335671756,1724412639483,-786.51314252,0.00017748,2]
[335671757,1724412639493,-786.51314252,0.00017748,2]
[335671758,1724412639502,-904.49011391,0.00017748,2]
[335671759,1724412639512,-904.49011391,0.00017748,2]
[335671760,1724412639522,-904.49011391,0.00017748,2]
[335671761,1724412639531,-904.49011391,0.00017748,2]
[335671762,1724412639544,-904.49011391,0.00017748,2]
[335671763,1724412639557,-904.49011391,0.00017748,2]
[335671764,1724412639567,-83169.0501155,0.00017748,2]
[335671765,1724412639577,-1990.33628881,0.00017748,9]
[335671766,1724412639587,-29563.44128462,0.00017749,2]
[335671918,1724413162589,500.0,0.00027,120]
[335671931,1724413405394,500.0,0.00027,120]
[335671938,1724413553156,-544.22652236,0.00013051,2]
[335671939,1724413553179,-160.50654328,0.00013333,2]
[335671940,1724413553201,-136.92869888,0.00013497,2]
[335671941,1724413554095,-18.02534077,0.00013497,2]
[335671942,1724413554117,-2052.34131655,0.00013698,2]
[335671943,1724413554138,-196.69322642,0.00013792,2]
[335671944,1724413554160,-190.07446844,0.00013792,2]
[335671945,1724413554182,-520.25072733,0.00013792,2]
[335671946,1724413554204,-210.99102179,0.00013971,2]
[335671947,1724413554226,-569.66960368,0.00013971,2]
[335671948,1724413554248,-154.86916128,0.00013971,2]
[335671949,1724413554269,-728.34861839,0.00013971,2]
[335671950,1724413554291,-320.27103328,0.00013971,2]
[335671951,1724413554314,-148.14465764,0.00013971,2]
[335671952,1724413605610,834.77416019,0.00012951,2]
[335671956,1724413619841,195.93,0.00027,120]
[335671957,1724413629129,-160.93996931,0.00013025,2]
[335671958,1724413629155,-613.86121884,0.00013233,2]
[335671959,1724413631107,-799.76638981,0.00013233,2]